Cogmind - Beta 11 X9 *** ADVENTURER MODE // 2022.01.18 @ 22:19:56 Player: Sardaukar Result: Destroyed by G-67 Veteran with Plasma Rifle Performance ------------- Evolutions (5) 2500 Regions Visited (12) 2400 Robots Destroyed (96) 480 Value Destroyed (3124) 3124 Prototype IDs (5) 100 Alien Tech Used (0) 0 Bonus (693) 693 TOTAL SCORE: 9297 Bonus ------- High Alert Combat Kills 88 Follower Combat Kills 105 Entered DSFs 500 Cogmind --------- Core Integrity 0/1000 Matter 147/300 Energy 100/100 System Corruption 8% Temperature Cool (0) Movement Core (50) Location -5/DSF Parts ------- > --- POWER (1) -------- (None) > --- PROPULSION (6) --- (None) > --- UTILITY (8) ------ (None) > --- WEAPON (2) ------- (None) > --- INVENTORY (5) ---- Antimatter Reactor High-capacity Storage Unit Improved Core Shielding Authchip [Processor] Authchip [Armor] Peak State ------------ > --- POWER ------------ Light Fission Core > --- PROPULSION ------- Field Propulsion Drive Field Propulsion Drive Field Propulsion Drive Field Propulsion Drive Field Propulsion Drive Field Propulsion Drive > --- UTILITY ---------- Large Storage Unit Visual Processing Unit Improved Signal Interpreter Recoil Nullifier Advanced Weapon Cycler Hacking Suite System Shield System Backup Module > --- WEAPON ----------- Gauss Rifle Flak Gun > --- INVENTORY -------- Field Propulsion Drive High-capacity Storage Unit High-capacity Matter Pod Advanced Trap Scanner Improved Terrain Scan Processor Improved Melee Analysis Suite Advanced Force Booster Stasis Canceller System Guard Improved Field Recycling Unit Makeshift Sword [Rating: 84] Favorites ----------- Power Light Ion Engine Engine Light Ion Engine Power Core Light Fission Core Propulsion Wheel Leg Aluminum Leg Wheel Wheel Hover Unit Combat Airjet Flight Unit Field Propulsion Drive Utility Large Storage Unit Device Cooling System Storage Large Storage Unit Processor Visual Processing Unit Hackware System Shield Protection Light Armor Plating Weapon Light EM Pulse Cannon Energy Cannon Light EM Pulse Cannon Ballistic Gun Flak Gun Ballistic Cannon Mini Assault Cannon Launcher Rocket Launcher Slashing Weapon Makeshift Sword Piercing Weapon Spear Build | -11 -10 -10 -10 -9 -8 -8 -7 -6 -5 -5 -5 -5 ------- Run | Scr Mat Min Exi Min Mat Sto Fac Fac Fac Was Fac DSF Slots Evolved 10 | . . . . . 4 . 2 2 2 . . . Power . | . . . . . . . . . . . . . Propulsion 4 | . . . . . 2 . 1 . 1 . . . Utility 6 | . . . . . 2 . 1 2 1 . . . Weapon . | . . . . . . . . . . . . . Parts Attached 149 | 5 16 6 2 1 8 17 18 38 8 2 11 17 Power 11 | 1 1 1 . . . 2 1 2 2 . . 1 Engine 6 | 1 1 1 . . . . 1 . 1 . . 1 Core 5 | . . . . . . 2 . 2 1 . . . Reactor . | . . . . . . . . . . . . . Propulsion 34 | 2 1 . . . 2 1 4 6 1 . 6 11 Treads . | . . . . . . . . . . . . . Leg 1 | . . . . . . 1 . . . . . . Wheel 9 | 2 1 . . . 2 . 4 . . . . . Hover 6 | . . . . . . . . 5 1 . . . Flight 18 | . . . . . . . . 1 . . 6 11 Utility 49 | 1 3 1 1 1 2 8 5 13 5 2 4 3 Device 27 | . . 1 1 . . 4 2 9 3 2 4 1 Storage 4 | 1 1 . . 1 . . . 1 . . . . Processor 6 | . 2 . . . . . . . 2 . . 2 Hackware 4 | . . . . . . 1 1 2 . . . . Protection 8 | . . . . . 2 3 2 1 . . . . Artifact . | . . . . . . . . . . . . . Weapon 55 | 1 11 4 1 . 4 6 8 17 . . 1 2 Energy Gun . | . . . . . . . . . . . . . Energy Cannon 9 | . 4 . . . . 2 . 3 . . . . Ballistic Gun 24 | 1 7 1 . . 2 2 4 6 . . 1 . Ballistic Cannon 1 | . . . . . . . 1 . . . . . Launcher 9 | . . 2 . . 2 1 1 3 . . . . Special Weapon . | . . . . . . . . . . . . . Impact Weapon . | . . . . . . . . . . . . . Slashing Weapon 11 | . . 1 1 . . 1 2 4 . . . 2 Piercing Weapon 1 | . . . . . . . . 1 . . . . Special Melee Weapon . | . . . . . . . . . . . . . Unidentified Prototypes 3 | . 1 . . . . . 1 . 1 . . . Parts Lost 42 | . . 1 . . 2 7 3 11 . . . 18 Power 5 | . . 1 . . 1 . . 1 . . . 2 Propulsion 13 | . . . . . . 2 . 1 . . . 10 Utility 17 | . . . . . 1 3 2 6 . . . 5 Weapon 7 | . . . . . . 2 1 3 . . . 1 Highest Loss Streak 16 | . . 1 . . 2 5 1 4 . . . 16 Average Slot Usage (%) 91 | . 90 99 100 100 70 82 98 95 85 94 97 56 Engine 7 | . 14 13 14 14 9 . 4 3 . . . 1 Core 1 | . . . . . . 4 2 2 5 5 5 . Wheel 22 | . 28 28 28 28 22 28 36 7 . . . . Hover 5 | . . . . . . . . 24 35 35 24 . Device 8 | . . 7 14 14 7 8 6 14 9 17 17 7 Storage 10 | . 14 14 14 14 9 9 7 6 5 5 5 3 Processor 3 | . 10 6 . . . . . . 10 11 11 8 Hackware 3 | . . . . . . . . 13 11 11 11 7 Protection 5 | . . . . . 4 13 21 7 . . . . Energy Cannon 4 | . 8 14 3 . . 3 . 2 . . . . Ballistic Gun 6 | . 13 1 . . 13 3 7 8 5 5 9 2 Launcher 3 | . . 1 14 14 4 7 1 . . . . . Slashing Weapon 3 | . . 10 10 14 . 2 2 1 . . . 2 Naked Turns 56 | . . . . . . . . . . . . 56 Heaviest Build 74 | 11 33 32 32 50 58 62 72 74 44 45 40 40 Greatest Support 65 | 26 26 20 20 20 46 46 56 58 65 65 65 42 Greatest Overweight (x) 6 | . 1 1 1 2 2 2 2 5 . . 5 6 Average Overweight (x) . | . . 1 1 2 1 1 1 . . . . . Largest Inventory Capacity 20 | 8 15 15 15 20 20 20 20 20 15 15 15 15 Average Capacity 16 | 6 14 15 15 20 20 20 20 16 15 15 15 12 Most Carried 20 | 1 14 14 15 16 17 20 18 19 12 10 10 12 Average Carried 12 | . 9 12 14 15 15 17 13 14 7 9 9 8 Final Capacity 20 | 8 15 15 15 20 20 20 20 15 15 15 15 5 Final Carried 17 | 1 14 13 15 16 16 16 17 13 7 10 10 5 Class Distribution -------------------- 62% | Mutant 23% | Hacker-Mutant 12% | Scavenger-Mutant Dominant Class ---------------- Mutant | -10/Materials Mutant | -10/Mines Mutant | -10/Exiles Mutant | -9/Mines Mutant | -8/Materials Mutant | -8/Storage Scavenger-Mutant | -7/Factory Hacker-Mutant | -6/Factory Hacker-Mutant | -5/Factory Hacker-Mutant | -5/Waste Hacker-Mutant | -5/Factory Mutant | -5/DSF Resources | -11 -10 -10 -10 -9 -8 -8 -7 -6 -5 -5 -5 -5 ----------- Run | Scr Mat Min Exi Min Mat Sto Fac Fac Fac Was Fac DSF Matter Collected 2546 | 250 231 63 35 78 243 706 285 342 . . 200 113 Remotely . | . . . . . . . . . . . . . Salvage Created 3254 | . 627 113 53 . 242 1031 301 770 . . . 117 Parts 194 | . 48 17 1 . 16 52 12 34 . . . 14 Haulers Intercepted 5 | . 1 . . . 1 3 . . . . . . Recyclers Shooed 2 | . . . . . . . . 2 . . . . Parts Field Recycled 10 | . . . . . . . . 10 . . . . Retrieved Matter 106 | . . . . . . . . 106 . . . . Parts Self-Destructed . | . . . . . . . . . . . . . Prevented . | . . . . . . . . . . . . . Kills | -11 -10 -10 -10 -9 -8 -8 -7 -6 -5 -5 -5 -5 ------- Run | Scr Mat Min Exi Min Mat Sto Fac Fac Fac Was Fac DSF Combat Hostiles Destroyed 68 | . 15 6 1 . 5 20 6 11 . . . 4 Melee 11 | . . . 1 . . 5 1 . . . . 4 Guns 16 | . 8 . . . 1 3 2 2 . . . . Cannons 12 | . 5 . . . . 3 1 3 . . . . AOE 28 | . 1 6 . . 4 9 2 6 . . . . Classes Destroyed 15 | . 6 1 1 . 2 . 2 2 . . . 1 Worker 6 | . . 1 . . . 2 . 3 . . . . Builder 3 | . 2 . . . . . 1 . . . . . Tunneler 3 | . 1 2 . . . . . . . . . . Hauler 5 | . 1 . . . 1 3 . . . . . . Recycler 2 | . . . . . . . . 2 . . . . Operator 3 | . . . . . 1 2 . . . . . . Watcher 6 | . 2 . . . . 1 . 3 . . . . Swarmer 12 | . 6 6 . . . . . . . . . . Cutter 4 | . . . . . . . . . . . . 4 Grunt 37 | . 9 . . . 4 14 3 7 . . . . Brawler 2 | . . . . . . . 1 1 . . . . Duelist 1 | . . . . . . . . 1 . . . . Sentry 7 | . . . . . 1 5 1 . . . . . Hunter 3 | . . . 1 . . 1 . 1 . . . . Programmer 2 | . . . . . . . 1 1 . . . . Best Kill Streak 7 | . 3 3 1 . 6 5 4 7 . . . 4 Combat Bots Only 5 | . 3 3 1 . 5 4 4 3 . . . 4 Max Kills in Single Turn 6 | . 1 3 1 . 2 3 1 6 . . . 1 Gunslinging . | . . . . . . . . . . . . . Exploded 3 | . 1 3 . . 1 3 1 3 . . . . Melee 1 | . . . 1 . . 1 1 . . . . 1 Uniques/NPCs Destroyed . | . . . . . . . . . . . . . Combat | -11 -10 -10 -10 -9 -8 -8 -7 -6 -5 -5 -5 -5 -------- Run | Scr Mat Min Exi Min Mat Sto Fac Fac Fac Was Fac DSF Damage Taken 5182 | . 249 59 . . 321 745 363 1540 . . . 1905 Core 1490 | . 64 . . . 33 164 21 203 . . . 1005 Absorbed by Shields 91 | . . . . . . . . . . . . 91 Core Remaining (%) 82 | 100 . . . 74 . 64 97 76 . . . . Volleys Fired 197 | 1 59 4 . . 18 49 17 45 . . . 4 Largest 2 | 1 2 2 . . 2 2 2 2 . . . 2 Hottest 112 | 20 112 89 . . 66 81 76 98 . . . 56 Shots Fired 315 | 1 78 8 . . 34 82 33 73 . . . 6 Gun 191 | 1 50 2 . . 22 38 27 45 . . . 6 Cannon 76 | . 28 4 . . . 20 3 21 . . . . Launcher 48 | . . 2 . . 12 24 3 7 . . . . Special . | . . . . . . . . . . . . . Kinetic 194 | 1 50 2 . . 22 38 30 45 . . . 6 Thermal 21 | . . . . . . . . 21 . . . . Explosive 48 | . . 2 . . 12 24 3 7 . . . . Electromagnetic 52 | . 28 4 . . . 20 . . . . . . Robot Hit Streak 29 | 1 27 29 . . 5 20 18 22 . . . 5 Robot Miss Streak 5 | . 5 2 . . 3 3 1 3 . . . 5 Penetration Max 1 | . . . . . 1 . . . . . . . Secondary Targets . | . . . . . . . . . . . . . Shots Hit Robots 262 | 1 52 8 2 . 23 70 33 62 . . . 11 Core Hits 215 | 1 26 10 1 . 15 50 17 86 . . . 9 Critical Kills 1 | . . . . . . . . 1 . . . . Critical Parts Destroyed . | . . . . . . . . . . . . . Critical Strikes 1 | . . . . . . . . 1 . . . . Destroy 1 | . . . . . . . . 1 . . . . Melee Attacks 54 | . . 9 2 . . 15 6 13 . . . 9 Impact . | . . . . . . . . . . . . . Slashing 54 | . . 9 2 . . 15 6 13 . . . 9 Piercing . | . . . . . . . . . . . . . Sneak Attacks 14 | . . 6 2 . . 4 1 . . . . 1 Combat Hostiles 2 | . . . 2 . . . . . . . . . Follow-up Attacks . | . . . . . . . . . . . . . Damage Inflicted 9102 | 6 824 658 204 . 692 2663 847 2830 . . . 378 Guns 2517 | 6 275 . . . 368 457 462 867 . . . 82 Cannons 1414 | . 474 20 . . . 354 81 485 . . . . Explosions 3209 | . 36 248 . . 324 1074 127 1400 . . . . Melee 1850 | . . 378 204 . . 778 124 70 . . . 296 Ramming 112 | . 39 12 . . . . 53 8 . . . . Kinetic 2598 | 6 275 . . . 368 457 543 867 . . . 82 Thermal 1266 | . 36 . . . . . . 1230 . . . . Explosive 2428 | . . 248 . . 324 1074 127 655 . . . . Electromagnetic 848 | . 474 20 . . . 354 . . . . . . Impact . | . . . . . . . . . . . . . Slashing 1850 | . . 378 204 . . 778 124 70 . . . 296 Piercing . | . . . . . . . . . . . . . Highest Corruption 8 | . . . . . 1 2 . 2 . 8 8 8 Average Corruption 3 | . . . . . 1 1 . 1 . 8 8 8 Corruption Purged . | . . . . . . . . . . . . . Effects 17 | . . . . . 1 2 . 2 . 4 2 6 Message Errors 3 | . . . . . . . . 2 . . . 1 Matter Fused 4 | . . . . . . . . . . 1 1 2 Heat Flow Errors 1 | . . . . . . . . . . 1 . . Energy Discharges 4 | . . . . . 1 . . . . 1 . 2 Data Loss (minor) 1 | . . . . . . 1 . . . . . . Data Loss (major) 2 | . . . . . . . . . . 1 1 . Weapon Failures 2 | . . . . . . 1 . . . . . 1 Overload Shots . | . . . . . . . . . . . . . Overflow Damage 344 | . . 99 . . . 140 2 103 . . . . Projectiles 12 | . . . . . . . . 12 . . . . Explosions 115 | . . 15 . . . 9 . 91 . . . . Melee 217 | . . 84 . . . 131 2 . . . . . Knockbacks . | . . . . . . . . . . . . . Impact . | . . . . . . . . . . . . . Kinetic . | . . . . . . . . . . . . . Secondary . | . . . . . . . . . . . . . Self-Inflicted Damage 441 | . 45 29 . . 51 97 26 193 . . . . Shots 15 | . 1 1 . . 2 4 . 7 . . . . Rammed 11 | . 6 2 . . . . 2 1 . . . . Targets Rammed 11 | . 6 2 . . . . 2 1 . . . . Kicked . | . . . . . . . . . . . . . Crushed . | . . . . . . . . . . . . . Highest Temperature 333 | . 228 36 . . 30 145 91 333 319 241 4 . Average Temperature 71 | . 87 15 . . 11 36 42 115 159 120 3 . Received Heat Transfer 1672 | . 90 . . . 153 360 216 555 . . . 298 Effects 2 | . . . . . . . . 2 . . . . Interference 2 | . . . . . . . . 2 . . . . Siege Activations . | . . . . . . . . . . . . . Robots Corrupted 1 | . 1 . . . . . . . . . . . Combat Hostiles 1 | . 1 . . . . . . . . . . . Parts Fried 7 | . 2 . . . . 5 . . . . . . Impact Corruptions 1 | . . . . . . . 1 . . . . . Robots Melted . | . . . . . . . . . . . . . Combat Hostiles . | . . . . . . . . . . . . . Parts Melted . | . . . . . . . . . . . . . Heat Transferred 1166 | . . . . . . . . 1166 . . . . Parts Sabotaged . | . . . . . . . . . . . . . Parts Stolen . | . . . . . . . . . . . . . Parts Stripped . | . . . . . . . . . . . . . Power Chain Reactions 1 | . 1 . . . . . . . . . . . Missiles Intercepted . | . . . . . . . . . . . . . Alert | -11 -10 -10 -10 -9 -8 -8 -7 -6 -5 -5 -5 -5 ------- Run | Scr Mat Min Exi Min Mat Sto Fac Fac Fac Was Fac DSF Peak Influence 691 | . 272 152 . . 306 691 268 481 183 98 60 152 Initial 183 | . . 73 . . . 106 154 17 183 53 60 37 Average 154 | . 101 89 . . 107 375 121 210 183 79 60 61 Maximum Alert Level 2 | . 1 . . . 1 2 1 2 . . . . Low Security (%) 72 | 100 90 100 . 100 82 18 64 53 100 100 100 100 Level 1 21 | . 9 . . . 17 44 35 38 . . . . Level 2 6 | . . . . . . 36 . 8 . . . . Level 3 . | . . . . . . . . . . . . . Level 4 . | . . . . . . . . . . . . . Level 5 . | . . . . . . . . . . . . . High Security . | . . . . . . . . . . . . . Max Security . | . . . . . . . . . . . . . Squads Dispatched 22 | . 3 . . . 4 4 3 6 . . . 2 Investigation 9 | . 3 . . . 1 . 2 3 . . . . Extermination 2 | . . . . . . . 1 1 . . . . Reinforcement 10 | . . . . . 3 4 . 1 . . . 2 Assault . | . . . . . . . . . . . . . Garrison 1 | . . . . . . . . 1 . . . . Intercept . | . . . . . . . . . . . . . Construction Impeded 1 | . . . . . . 1 . . . . . . Haulers Reinforced . | . . . . . . . . . . . . . Active Scanning Responses . | . . . . . . . . . . . . . Cargo Convoy Interrupts . | . . . . . . . . . . . . . Stealth | -11 -10 -10 -10 -9 -8 -8 -7 -6 -5 -5 -5 -5 --------- Run | Scr Mat Min Exi Min Mat Sto Fac Fac Fac Was Fac DSF Distress Signals 7 | . . . . . 2 2 . 3 . . . . Communications Jammed . | . . . . . . . . . . . . . Distress Signals . | . . . . . . . . . . . . . Times Spotted 147 | . 28 6 . . 13 24 6 45 . 6 . 19 Peak Tracking Total 11 | . 4 3 . . 5 4 3 11 . 6 . 8 Tactical Retreats 20 | . 2 . . . . 1 . 13 . . . 4 Traps | -11 -10 -10 -10 -9 -8 -8 -7 -6 -5 -5 -5 -5 ------- Run | Scr Mat Min Exi Min Mat Sto Fac Fac Fac Was Fac DSF Traps Triggered 15 | . 6 . . . 2 1 . 2 1 . . 3 Indirectly 1 | . 1 . . . . . . . . . . . Trap Hack Attempts . | . . . . . . . . . . . . . Triggered . | . . . . . . . . . . . . . Disarmed 1 | . . . . . . 1 . . . . . . Reprogrammed . | . . . . . . . . . . . . . Reused . | . . . . . . . . . . . . . Traps Extracted . | . . . . . . . . . . . . . Installed . | . . . . . . . . . . . . . Triggered . | . . . . . . . . . . . . . Machines | -11 -10 -10 -10 -9 -8 -8 -7 -6 -5 -5 -5 -5 ---------- Run | Scr Mat Min Exi Min Mat Sto Fac Fac Fac Was Fac DSF Machines Disabled 20 | . 3 2 . . 2 7 . 6 . . . . Max in Single Turn 4 | . 2 1 . . 1 1 . 4 . . . . Machines Sabotaged . | . . . . . . . . . . . . . Garrisons Compromised . | . . . . . . . . . . . . . Overloaded Fab Kills . | . . . . . . . . . . . . . Hacking | -11 -10 -10 -10 -9 -8 -8 -7 -6 -5 -5 -5 -5 --------- Run | Scr Mat Min Exi Min Mat Sto Fac Fac Fac Was Fac DSF Machines Accessed 24 | . 7 . 1 . . 3 6 6 . . 1 . Terminals 16 | . 5 . . . . 3 4 3 . . 1 . Fabricators . | . . . . . . . . . . . . . Repair Stations 1 | . . . . . . . . 1 . . . . Recycling Units 5 | . 2 . . . . . 2 1 . . . . Scanalyzers 1 | . . . . . . . . 1 . . . . Garrison Access . | . . . . . . . . . . . . . Total Hacks 104 | . 23 . 23 . . 12 17 28 . . 1 . Successful 79 | . 16 . 23 . . 8 13 18 . . 1 . Failed 25 | . 7 . . . . 4 4 10 . . . . Catastrophic 3 | . . . . . . 1 1 1 . . . . Database Lockouts . | . . . . . . . . . . . . . Manual 33 | . 13 . . . . 6 9 5 . . . . Terminals 53 | . 17 . . . . 12 12 11 . . 1 . Fabricators . | . . . . . . . . . . . . . Repair Stations 3 | . . . . . . . . 3 . . . . Recycling Units 17 | . 6 . . . . . 5 6 . . . . Scanalyzers 8 | . . . . . . . . 8 . . . . Garrison Access . | . . . . . . . . . . . . . Terminal Hacks 51 | . 9 . 23 . . 8 6 4 . . 1 . Record 25 | . 1 . 23 . . . . 1 . . . . Robot Analysis 2 | . 1 . . . . . 1 . . . . . Prototype ID Bank 1 | . 1 . . . . . . . . . . . Open Door 1 | . . . . . . 1 . . . . . . Open DSF 2 | . . . . . . . . 1 . . 1 . Terminal Index 1 | . . . . . . . 1 . . . . . Garrison Index 1 | . . . . . . . 1 . . . . . Alert Level 4 | . 1 . . . . 2 . 1 . . . . Unreport Threat 3 | . . . . . . 2 1 . . . . . Locate Traps 2 | . 1 . . . . 1 . . . . . . Disarm Traps 1 | . . . . . . 1 . . . . . . Transport Status 1 | . 1 . . . . . . . . . . . Coupling Status 1 | . 1 . . . . . . . . . . . Recall Investigation 3 | . 1 . . . . . 2 . . . . . Recall Reinforcements 1 | . . . . . . . . 1 . . . . Hauler Manifests 1 | . 1 . . . . . . . . . . . Zone Layout 1 | . . . . . . 1 . . . . . . Fabricator Hacks . | . . . . . . . . . . . . . Repair Station Hacks 1 | . . . . . . . . 1 . . . . Scan Component 1 | . . . . . . . . 1 . . . . Recycling Unit Hacks 11 | . 4 . . . . . 4 3 . . . . Report Inventory 6 | . 2 . . . . . 3 1 . . . . Retrieve Matter 2 | . 1 . . . . . . 1 . . . . Retrieve Components 3 | . 1 . . . . . 1 1 . . . . Scanalyzer 8 | . . . . . . . . 8 . . . . Insert Component 4 | . . . . . . . . 4 . . . . Analyze 4 | . . . . . . . . 4 . . . . Garrison Access Hacks . | . . . . . . . . . . . . . Unauthorized Hacks 8 | . 3 . . . . . 3 2 . . . . Terminals 3 | . 1 . . . . . 2 . . . . . Botnet 2 | . . . . . . . 2 . . . . . Detonate 1 | . 1 . . . . . . . . . . . Fabricators . | . . . . . . . . . . . . . Repair Stations . | . . . . . . . . . . . . . Recycling Units 5 | . 2 . . . . . 1 2 . . . . Monitor 2 | . . . . . . . 1 1 . . . . Reject 3 | . 2 . . . . . . 1 . . . . Scanalyzers . | . . . . . . . . . . . . . Garrison Access . | . . . . . . . . . . . . . Data Cores Recovered 1 | . . . . . . 1 . . . . . . Used . | . . . . . . . . . . . . . Hacking Detections 18 | . 6 . . . . 2 6 4 . . . . Full Trace Events 10 | . 4 . . . . 2 2 2 . . . . Feedback Events 2 | . . . . . . 1 . 1 . . . . Corruption 2 | . . . . . . 1 . 1 . . . . Feedback Blocked . | . . . . . . . . . . . . . Robot Schematics Acquired . | . . . . . . . . . . . . . Robots Built . | . . . . . . . . . . . . . Authchips . | . . . . . . . . . . . . . Time . | . . . . . . . . . . . . . Total Robot Build Rating . | . . . . . . . . . . . . . Part Schematics Acquired 3 | . . . . . . . . 3 . . . . Parts Built . | . . . . . . . . . . . . . Authchips . | . . . . . . . . . . . . . Time . | . . . . . . . . . . . . . Total Part Build Rating . | . . . . . . . . . . . . . Parts Repaired . | . . . . . . . . . . . . . Time . | . . . . . . . . . . . . . Parts Recycled . | . . . . . . . . . . . . . Recycled Matter . | . . . . . . . . . . . . . Retrieved Matter 78 | . . . . . . . . 78 . . . . Retrieved Components 12 | . . . . . . . 3 9 . . . . Parts Scanalyzed 4 | . . . . . . . . 4 . . . . Part Schematics Acquired 3 | . . . . . . . . 3 . . . . Parts Damaged . | . . . . . . . . . . . . . Bothacking | -11 -10 -10 -10 -9 -8 -8 -7 -6 -5 -5 -5 -5 ------------ Run | Scr Mat Min Exi Min Mat Sto Fac Fac Fac Was Fac DSF Used RIF Installer . | . . . . . . . . . . . . . Robots Hacked . | . . . . . . . . . . . . . Non-combat . | . . . . . . . . . . . . . Combat . | . . . . . . . . . . . . . Robot Hacks Applied . | . . . . . . . . . . . . . Relay Couplers Released . | . . . . . . . . . . . . . Fabnet Peak Effective % . | . . . . . . . . . . . . . Robots Rewired 2 | . . . 2 . . . . . . . . . Allies Hacked . | . . . . . . . . . . . . . Hacks Repelled . | . . . . . . . . . . . . . Allies | -11 -10 -10 -10 -9 -8 -8 -7 -6 -5 -5 -5 -5 -------- Run | Scr Mat Min Exi Min Mat Sto Fac Fac Fac Was Fac DSF Total Allies 2 | . . . 2 . . . . . . . . . Largest Group 2 | . . . 2 2 2 . . . . . . . Highest-Rated Group 29 | . . . 29 29 29 . . . . . . . Highest-Rated Ally 21 | . . . 21 21 21 . . . . . . . Total Orders 11 | . . . . . . 8 3 . . . . . EXPLORE 11 | . . . . . . 8 3 . . . . . Ally Attacks 11 | . . . . . 11 . . . . . . . Total Damage 199 | . . . . . 199 . . . . . . . Kills 3 | . . . . . 3 . . . . . . . Allies Corrupted 2 | . . . . . 1 . 1 . . . . . Allies Melted . | . . . . . . . . . . . . . Intel | -11 -10 -10 -10 -9 -8 -8 -7 -6 -5 -5 -5 -5 ------- Run | Scr Mat Min Exi Min Mat Sto Fac Fac Fac Was Fac DSF Robot Analysis Total 2 | . 1 . . . . . 1 . . . . . Derelict Logs Recovered 2 | . . 2 . . . . . . . . . . Drone Launches 11 | . . . . . . 8 3 . . . . . Drone Recoveries 5 | . . . . . . 4 1 . . . . . Exploration | -11 -10 -10 -10 -9 -8 -8 -7 -6 -5 -5 -5 -5 ------------- Run | Scr Mat Min Exi Min Mat Sto Fac Fac Fac Was Fac DSF Turns Passed 5510 | 56 1169 743 518 78 196 594 682 1061 65 96 55 197 Spaces Moved 4519 | 51 848 715 485 69 109 280 532 1002 24 128 57 219 Core 62 | 1 . . . . . . . . . . . 61 Treads . | . . . . . . . . . . . . . Legs . | . . . . . . . . . . . . . Wheels 3313 | 50 848 715 485 69 109 280 532 225 . . . . Hover 963 | . . . . . . . . 777 24 128 34 . Flight 181 | . . . . . . . . . . . 23 158 Fastest Speed 27 | 50 90 95 95 110 100 100 99 60 53 53 30 27 Average Speed 86 | 90 93 95 95 110 107 102 99 71 53 53 58 42 Slowest Speed 445 | 100 95 95 95 110 110 120 120 231 53 53 445 350 Overloaded Moves . | . . . . . . . . . . . . . Propulsion Burnouts . | . . . . . . . . . . . . . Robots Hopped . | . . . . . . . . . . . . . Cave-ins Triggered . | . . . . . . . . . . . . . Exploration Rate (%) 45 | 4 83 97 89 31 17 59 19 24 1 80 3 80 Regions Visited 12 Branch Regions 4 Pre-discovered Areas 1 | . . . 1 . . . . . . . . . Known Exits Taken 2 | . 1 . . . . . . . . . 1 . Unknown Exits Taken 8 | 1 . 1 1 1 1 1 1 1 . . . . Scrap Searched 2 | . . 2 . . . . . . . . . . Spaces Dug 16 | . . 1 . . . . 4 11 . . . . Terrain Destroyed 482 | . 26 14 . . 102 229 27 84 . . . . Melee 16 | . . 1 . . . . 4 11 . . . . Projectile 3 | . . . . . . . 2 1 . . . . AOE 463 | . 26 13 . . 102 229 21 72 . . . . Terrain Rammed . | . . . . . . . . . . . . . Walls Destroyed . | . . . . . . . . . . . . . Machines Disabled . | . . . . . . . . . . . . . Actions | -11 -10 -10 -10 -9 -8 -8 -7 -6 -5 -5 -5 -5 --------- Run | Scr Mat Min Exi Min Mat Sto Fac Fac Fac Was Fac DSF Total 5730 | 57 1147 751 540 70 151 491 646 1263 76 154 77 307 Wait 616 | . 199 12 22 . 16 107 50 125 41 22 . 22 Move 4509 | 50 847 714 484 68 108 279 531 1001 24 127 57 219 Hop . | . . . . . . . . . . . . . Pick Up 79 | 1 15 2 2 1 1 11 11 16 1 3 2 13 Fast Attach 46 | 5 8 . 2 . . 3 4 9 . 1 6 8 Attach 47 | . 1 2 . . 4 8 8 11 6 . 1 6 Detach 6 | . . . 1 . . . 2 2 . . . 1 Swap 56 | . 7 4 . 1 4 6 6 18 2 1 4 3 Drop 61 | . 5 2 2 . . 5 9 22 2 . 7 7 Fire 197 | 1 59 4 . . 18 49 17 45 . . . 4 Melee 54 | . . 9 2 . . 15 6 13 . . . 9 Ram 11 | . 6 2 . . . . 2 1 . . . . Kick . | . . . . . . . . . . . . . Crush . | . . . . . . . . . . . . . Escape Stasis 23 | . . . . . . 8 . . . . . 15 Rewire 25 | . . . 25 . . . . . . . . . Trap . | . . . . . . . . . . . . . Miscellaneous . | . . . . . . . . . . . . . Route ------- -11/Scrapyard -10/Materials (discovered 4 exits: *Mat x3 / *Min) -10/Mines (discovered 3 exits: *Mat x2 / *Exi) -10/Exiles -9/Mines (discovered 2 exits: [*Mat x2]) -8/Materials -8/Storage (discovered 2 exits: *Fac / [Rec]) -7/Factory -6/Factory -5/Factory -5/Waste -5/Factory -5/DSF History --------- Turn | Location | Event 6 | -11/Scrapyard | Discovered new exit (range 16) 57 | -11/Scrapyard | Entered Materials 252 | -10/Materials | Discovered new exit (range 16) 306 | -10/Materials | Build established: Mutant 350 | -10/Materials | Identified exit to Mines 391 | -10/Materials | Discovered new exit (range 16) 405 | -10/Materials | Identified exit to Materials 829 | -10/Materials | Discovered exit to Materials (range 4) 1142 | -10/Materials | Discovered exit to Materials (range 7) 1226 | -10/Materials | Entered Mines 1298 | -10/Mines | Learned Materials garrison access intel 1366 | -10/Mines | Learned Materials emergency access door positions 1704 | -10/Mines | Discovered exit to Materials (range 10) 1775 | -10/Mines | Discovered exit to Materials (range 8) 1797 | -10/Mines | Received a Rocket Launcher from a helpful Derelict 1965 | -10/Mines | Deemed a non-threat by the Exiles lab entrance 1965 | -10/Mines | Discovered new exit (range 5) 1969 | -10/Mines | Entered Exiles 1969 | -10/Exiles | Found Exiles lab destroyed 2219 | -10/Exiles | Learned location of Zion (-6) 2258 | -10/Exiles | Discovered new exit (range 14) 2487 | -10/Exiles | Entered Mines 2487 | -9/Mines | Accompanied by 2 allies 2549 | -9/Mines | Discovered new exit (range 14) 2558 | -9/Mines | Discovered new exit (range 16) 2565 | -9/Mines | Entered Materials 2565 | -8/Materials | Accompanied by 2 allies 2565 | -8/Materials | Evolved 4 slots: Propulsion x2, Utility x2 2567 | -8/Materials | Loaded intel: 1 garrison access location 2730 | -8/Materials | Discovered new exit (range 12) 2761 | -8/Materials | Entered Storage 3159 | -8/Storage | Discovered new exit (range 17) 3239 | -8/Storage | Lost 5 parts (1n2u2w) 3346 | -8/Storage | Discovered new exit (range 8) 3355 | -8/Storage | Entered Factory 3355 | -7/Factory | Evolved 2 slots: Propulsion x1, Utility x1 3570 | -7/Factory | Build established: Scavenger-Mutant 3940 | -7/Factory | Discovered new exit (range 8) 4037 | -7/Factory | Entered another Factory area 4037 | -6/Factory | Evolved 2 slots: Utility x2 4318 | -6/Factory | Build established: Hacker-Mutant 4807 | -6/Factory | Garrison activated, responded to threat 5006 | -6/Factory | Lost 4 parts (1p3u) 5096 | -6/Factory | Discovered new exit (range 3) 5098 | -6/Factory | Entered another Factory area 5098 | -5/Factory | Evolved 2 slots: Propulsion x1, Utility x1 5163 | -5/Factory | Sucked down chute 5163 | -5/Factory | Entered Waste 5167 | -5/Waste | Found Adv. Force Booster 5178 | -5/Waste | EMP discharged 5197 | -5/Waste | Spotted C-40 Crusher 5202 | -5/Waste | Spotted C-40 Crusher 5210 | -5/Waste | Spotted C-40 Crusher 5210 | -5/Waste | Spotted C-40 Crusher 5237 | -5/Waste | Spotted C-40 Crusher 5248 | -5/Waste | Spotted C-40 Crusher 5250 | -5/Waste | Discovered new exit (range 18) 5258 | -5/Waste | Identified exit to Factory 5259 | -5/Waste | Entered Factory 5314 | -5/Factory | Identified exit to DSF 5314 | -5/Factory | Entered DSF 5335 | -5/DSF | Additional patrols routed to DSF 5455 | -5/DSF | Released all parts (8) 5461 | -5/DSF | Core integrity fell below 50% 5486 | -5/DSF | Lost 16 parts (1p10n4u1w) 5500 | -5/DSF | Core integrity fell below 20% 5511 | -5/DSF | Destroyed by G-67 Veteran with Plasma Rifle Last Messages --------------- 05497_ Field strength at 67. 05498_ Field strength at 61. 05499_ Field strength at 55. 05500_ Field strength at 28. 05501_ Field strength at 22. 05502_ Field strength at 16. 05503_ Stasis field depleted. 05503_ Triggered Stasis Trap. 05503_ A bubble of rippling energy engulfs the area. 05503_ Field strength at 94. 05503_ Field strength at 88. 05504_ Field strength at 82. 05505_ Field strength at 76. 05506_ System corrupted: Matter fused (-9). 05506_ Field strength at 70. 05507_ Field strength at 55. 05508_ Field strength at 40. 05509_ Critical hit (Burn: +26). 05509_ Field strength at 30. 05510_ Field strength at 10. Map ----- +----------------------------------------------------+ | | | | | | | | | | | | | | | | | | | | | | | | | | | ????????????????????????????????????????????????? | | ????????????????????????????????????????????????? | | ????????????????????????????????????????????????? | | ????????????????????????????????????????????????? | | ????????????????????????????????????????????????? | | ????????????????????????????????????????????????? | | ????????????????????#########???????????????????? | | ??????????????????#?#!! ]]#???????????????????? | | ???????????????????[#!! ]]#???????????????????? | | ???????????????????? #???????????????????? | | ????????????????????? ????????????????????? | | ??????????????????????# #?????????????????????? | | ????????????????????### @ ###???????????????????? | | ????????????????????# ccc #???????????????????? | | ????????????????????# #???????????????????? | | ????????????????????# #???????????????????? | | ????????????????????### ###???????????????????? | | ????????????????????#!! !!#???????????????????? | | ????????? ?????????#!! ! !#???????????????????? | | ????????? ?????????#!! !!#???????????????????? | | ???????## ?????#### ## #################?????? | | ???????!! ##!??#! ## ###!!!#=!!## #?????? | | ???????!! ##!!!# !## A #! !#*!!"# #?????? | | ??????? %=!!=%/% !!#?????? | | ??????? % = !^ ^!!#?????? | | ??????? gggg %H ^ !#?????? | | ????????! ## #!!!## g # "!!!## #?????? | | ????????! ## #!!!?## ###!!!#!!!## #?????? | | ???????## ##???###?### ############ ###?????? | | ???????#* **???????#!! *#??????#!!! #??????? | | ???????#* *????????#!! **#??????#! ! #??????? | | ????????* *????????# ! **#??????#!! #??????? | | ??????### ###??????### ###??????### ##??????? | | ??????# #??????#!! !!#??????# #??????? | | ??????# #??????#!! !!#??????# #??????? | | ??????# #########!! !########## ##??????? | | ??????### # # # ### ###!!!#!!### ###?????? | +----------------------------------------------------+ Best States ------------- Heat Dissipation 61 Energy Generation 18 Energy Capacity 290 Matter Stores 300 Matter Capacity 300 Sight Range 18 Terrain Scan Range 18 Terrain Scan Density 10 Armor Coverage 450 Resistance: KI 20 Resistance: TH 20 Resistance: EX 20 Resistance: EM 45 Resistance: I 20 Resistance: S 20 Resistance: P 20 Weapon Cycling 25 Evasion (%) 64 Melee Accuracy 8 Recoil Reduction 6 Kinecelleration 30 Force Boost 5 Offensive Hacking 20 Defensive Hacking 20 Authchip Count 2 Item Schematics ----------------- System Backup Module | -6/Factory | Scanalyzed System Guard | -6/Factory | Scanalyzed Mak. Sword | -6/Factory | Scanalyzed Robot Schematics ------------------ None Fabricated ------------ Nothing Alien Tech Used ----------------- None Achievements -------------- None Challenges ------------ None Game ------ Seed BlastClaymoresTreads Manual? 0 Play Time 02:28:22 Cumulative 136.0 hours Start 2022.01.16 @ 22:45:04 End 2022.01.18 @ 22:19:56 Sessions 8 Manual Loads 0 Difficulty Adventurer Special Mode None Game No. 26 Rogue 0 Adventurer 20 Explorer 6 Win Type - Total 2 Types 1/0/1/0/0/0/0/0/0 Lore% 47 Gallery% 59 Achievement% 44 Wizard Run 0 Options --------- ASCII 0 Keyboard 0 Movement Mouse Keybinds 0 Fullscreen 2 Font 20/Terminus Map View 66x50 Tactical HUD 1 Map Filters NONE Filters NONE Steam 1 RUN: d5763500-4773-4215-9692-b9b232de59b1